fUSD/lending_fUSD_20240607
["ID","MTS","AMOUNT","RATE_DAILY","PERIOD"]
[328770897,1717780242653,-246.72665707,0.00029998,2]
[328770900,1717780242662,-1543.32242766,0.00029998,2]
[328770904,1717780242672,-328.649175,0.00029998,2]
[328770907,1717780242681,-1414.5331256,0.00029998,2]
[328770910,1717780242691,-1638.31950947,0.00029998,2]
[328770913,1717780242700,-1963.0385213,0.00029998,2]
[328770916,1717780242710,-333.82252227,0.00029998,2]
[328770919,1717780242719,-239.59019668,0.00029998,2]
[328770923,1717780242730,-1604.60035557,0.00029998,2]
[328770926,1717780242740,-5000.0,0.00029998,2]
[328770928,1717780242750,-155.0,0.00029998,2]
[328770931,1717780242760,-255.24325193,0.00029998,2]
[328770933,1717780242770,-3883.64162299,0.00029998,2]
[328770935,1717780242780,-209.23906583,0.00029998,2]
[328770937,1717780242790,-3136.90704363,0.00029998,2]
[328770938,1717780242804,-500.0,0.00029998,4]
[328770939,1717780242815,-209.81912399,0.00029998,4]
[328770940,1717780242824,-500.0,0.00029998,4]
[328770941,1717780242837,-500.0,0.00029998,4]
[328770942,1717780242847,-500.0,0.00029998,2]
[328770943,1717780242856,-500.0,0.00029998,4]
[328770944,1717780242866,-500.0,0.00029998,4]
[328770945,1717780242875,-500.0,0.00029998,4]
[328770946,1717780242886,-500.0,0.00029998,4]
[328770947,1717780242897,-500.0,0.00029998,4]
[328770948,1717780242907,-500.0,0.00029998,4]
[328770949,1717780242916,-587.57,0.00029998,4]
[328770950,1717780242926,-500.0,0.00029998,4]
[328770951,1717780242936,-250.81691551,0.00029998,4]
[328770952,1717780242945,-500.0,0.00029998,4]
[328770953,1717780242955,-500.0,0.00029998,4]
[328770954,1717780242964,-155.0,0.00029998,2]
[328770955,1717780242974,-500.0,0.00029998,4]
[328770956,1717780242984,-500.0,0.00029998,4]
[328770957,1717780242993,-818.96,0.00029998,4]
[328770958,1717780243003,-500.0,0.00029998,4]
[328770959,1717780243012,-551.59,0.00029998,4]
[328770960,1717780243022,-285.62232299,0.00029998,2]
[328770961,1717780243031,-161.70397534,0.00029998,2]
[328770962,1717780243042,-569.4,0.00029998,4]
[328770963,1717780243052,-500.0,0.00029998,4]
[328770964,1717780243062,-220.26,0.00029998,4]
[328770965,1717780243072,-500.0,0.00029998,4]
[328770966,1717780243084,-500.0,0.00029998,4]
[328770967,1717780243094,-500.0,0.00029998,4]
[328770968,1717780243104,-500.0,0.00029998,4]
[328770969,1717780243114,-500.0,0.00029998,4]
[328770970,1717780243124,-1904.01,0.00029998,4]
[328770971,1717780243134,-348.28445857,0.00029998,2]
[328770972,1717780243143,-209.83487282,0.00029998,2]
[328770973,1717780243154,-167.7655461,0.00029998,2]
[328770974,1717780243164,-644.64661214,0.00029998,2]
[328770975,1717780243173,-222.76383005,0.00029998,2]
[328770976,1717780243183,-236.91615049,0.00029998,2]
[328770977,1717780243193,-413.34281113,0.00029999,2]
[328770978,1717780243202,-500.0,0.00029999,2]
[328770979,1717780243211,-5000.000001,0.00029999,2]
[328770980,1717780243221,-500.0,0.00029999,4]
[328770981,1717780243231,-500.0,0.00029999,4]
[328770982,1717780243241,-296.39180982,0.00029999,4]
[328770983,1717780243250,-151.0,0.00029999,7]
[328770984,1717780243259,-151.0,0.00029999,7]
[328770985,1717780243269,-151.0,0.00029999,7]
[328770986,1717780243279,-150.0,0.00029999,2]
[328770987,1717780243289,-175.779324,0.00029999,7]
[328770988,1717780243298,-500.0,0.00029999,4]
[328770989,1717780243307,-500.0,0.00029999,4]
[328770990,1717780243317,-151.0,0.00029999,7]
[328770991,1717780243331,-151.0,0.00029999,7]
[328770992,1717780243340,-500.0,0.00029999,2]
[328770993,1717780243352,-500.0,0.00029999,2]
[328770994,1717780243361,-635.8,0.00029999,2]
[328770995,1717780243372,-151.0,0.00029999,7]
[328770996,1717780243382,-500.0,0.00029999,4]
[328770997,1717780243391,-500.0,0.00029999,4]
[328770998,1717780243401,-500.0,0.00029999,4]
[328770999,1717780243410,-500.00000001,0.00029999,4]
[328771000,1717780243420,-500.0,0.00029999,4]
[328771001,1717780243430,-500.0,0.00029999,4]
[328771002,1717780243440,-259.57150424,0.00029999,4]
[328771003,1717780243450,-151.0,0.00029999,7]
[328771004,1717780243459,-434.671708,0.00029999,7]
[328771005,1717780243469,-434.671708,0.00029999,7]
[328771006,1717780243479,-500.0,0.00029999,4]
[328771007,1717780243489,-232.97278056,0.00029999,4]
[328771008,1717780243498,-500.0,0.00029999,4]
[328771009,1717780243508,-500.0,0.00029999,4]
[328771010,1717780243517,-500.0,0.00029999,4]
[328771011,1717780243527,-500.0,0.00029999,4]
[328771012,1717780243537,-358.10717354,0.00029999,4]
[328771013,1717780243546,-151.0,0.00029999,7]
[328771014,1717780243556,-500.0,0.00029999,4]
[328771015,1717780243566,-500.0,0.00029999,4]
[328771016,1717780243575,-500.0,0.00029999,4]
[328771018,1717780243586,-500.0,0.00029999,4]
[328771020,1717780243595,-500.0,0.00029999,4]
[328771022,1717780243605,-500.0,0.00029999,4]
[328771024,1717780243614,-500.0,0.00029999,4]
[328771026,1717780243624,-500.0,0.00029999,4]
[328771028,1717780243633,-500.0,0.00029999,4]
[328771029,1717780243642,-500.0,0.00029999,4]
[328771030,1717780243652,-500.0,0.00029999,4]
[328771031,1717780243661,-500.0,0.00029999,4]
[328771032,1717780243671,-500.0,0.00029999,4]
[328771033,1717780243680,-500.0,0.00029999,4]
[328771034,1717780243690,-500.0,0.00029999,4]
[328771035,1717780243700,-533.80467386,0.00029999,4]
[328771036,1717780243710,-500.0,0.00029999,4]
[328771037,1717780243719,-500.0,0.00029999,4]
[328771038,1717780243729,-500.0,0.00029999,4]
[328771040,1717780243739,-500.0,0.00029999,4]
[328771042,1717780243748,-151.0,0.00029999,7]
[328771044,1717780243758,-500.0,0.00029999,4]
[328771046,1717780243768,-500.0,0.00029999,4]
[328771048,1717780243778,-500.0,0.00029999,4]
[328771050,1717780243788,-500.0,0.00029999,4]
[328771052,1717780243799,-500.0,0.00029999,4]
[328771054,1717780243810,-500.0,0.00029999,4]
[328771056,1717780243823,-500.0,0.00029999,4]
[328771058,1717780243834,-500.0,0.00029999,4]
[328771060,1717780243846,-500.0,0.00029999,4]
[328771062,1717780243856,-500.0,0.00029999,4]
[328771064,1717780243865,-500.0,0.00029999,4]
[328771066,1717780243875,-500.0,0.00029999,4]
[328771068,1717780243885,-500.0,0.00029999,4]
[328771070,1717780243895,-500.0,0.00029999,4]
[328771072,1717780243905,-627.94315168,0.00029999,4]
[328771074,1717780243914,-444.90416008,0.00029999,4]
[328771076,1717780243924,-500.0,0.00029999,4]
[328771078,1717780243934,-500.0,0.00029999,4]
[328771080,1717780243944,-541.29,0.00029999,4]
[328771082,1717780243953,-500.0,0.00029999,4]
[328771084,1717780243963,-500.0,0.00029999,4]
[328771086,1717780243973,-500.0,0.00029999,4]
[328771088,1717780243982,-500.0,0.00029999,4]
[328771090,1717780243992,-500.0,0.00029999,4]
[328771092,1717780244002,-500.0,0.00029999,4]
[328771094,1717780244011,-500.0,0.00029999,4]
[328771096,1717780244022,-500.0,0.00029999,4]
[328771098,1717780244031,-500.0,0.00029999,4]
[328771100,1717780244041,-500.0,0.00029999,4]
[328771102,1717780244051,-500.0,0.00029999,4]
[328771104,1717780244061,-500.0,0.00029999,4]
[328771106,1717780244070,-500.0,0.00029999,4]
[328771108,1717780244082,-500.0,0.00029999,4]
[328771110,1717780244091,-550.50165183,0.00029999,4]
[328771112,1717780244101,-151.0,0.00029999,7]
[328771114,1717780244110,-587.57,0.00029999,4]
[328771116,1717780244120,-587.57,0.00029999,4]
[328771118,1717780244129,-587.57,0.00029999,4]
[328771120,1717780244139,-587.57,0.00029999,4]
[328771122,1717780244149,-587.57,0.00029999,4]
[328771124,1717780244158,-587.57,0.00029999,4]
[328771126,1717780244168,-587.57,0.00029999,4]
[328771128,1717780244178,-587.57,0.00029999,4]
[328771130,1717780244187,-587.57,0.00029999,4]
[328771132,1717780244197,-587.57,0.00029999,4]
[328771134,1717780244207,-587.57,0.00029999,4]
[328771136,1717780244216,-587.57,0.00029999,4]
[328771138,1717780244226,-587.57,0.00029999,4]
[328771140,1717780244235,-587.57,0.00029999,4]
[328771142,1717780244245,-587.57,0.00029999,4]
[328771144,1717780244254,-587.57,0.00029999,4]
[328771145,1717780244264,-587.57,0.00029999,4]
[328771147,1717780244274,-587.57,0.00029999,4]
[328771148,1717780244283,-587.66419002,0.00029999,4]
[328771149,1717780244292,-152.611291,0.00029999,7]
[328771150,1717780244302,-161.744645,0.00029999,7]
[328771151,1717780244311,-151.83286,0.00029999,7]
[328771152,1717780244321,-151.516605,0.00029999,7]
[328771153,1717780244332,-151.0,0.00029999,7]
[328771154,1717780244341,-151.970487,0.00029999,7]
[328771155,1717780244351,-500.0,0.00029999,4]
[328771156,1717780244360,-500.0,0.00029999,4]
[328771157,1717780244369,-500.0,0.00029999,4]
[328771158,1717780244379,-429.31,0.00029999,4]
[328771159,1717780244388,-151.0,0.00029999,7]
[328771160,1717780244397,-151.0,0.00029999,7]
[328771161,1717780244407,-151.0,0.00029999,7]
[328771162,1717780244416,-151.0,0.00029999,7]
[328771163,1717780244425,-151.0,0.00029999,7]
[328771164,1717780244435,-151.0,0.00029999,7]
[328771165,1717780244444,-151.0,0.00029999,7]
[328771166,1717780244460,-151.0,0.00029999,7]
[328771167,1717780244475,-151.0,0.00029999,7]
[328771168,1717780244485,-151.0,0.00029999,7]
[328771169,1717780244495,-152.1893,0.00029999,7]
[328771170,1717780244504,-151.0,0.00029999,7]
[328771171,1717780244514,-152.733844,0.00029999,7]
[328771172,1717780244524,-193.78328715,0.00029999,4]
[328771173,1717780244535,-151.0,0.00029999,7]
[328771174,1717780244545,-152.662895,0.00029999,7]
[328771175,1717780244554,-174.48041,0.00029999,7]
[328771176,1717780244565,-233.6754,0.00029999,7]
[328771177,1717780244575,-151.0,0.00029999,7]
[328771178,1717780244587,-233.6754,0.00029999,7]
[328771179,1717780244597,-159.414721,0.00029999,7]
[328771180,1717780244606,-151.0,0.00029999,7]
[328771181,1717780244616,-151.0,0.00029999,7]
[328771182,1717780244626,-151.0,0.00029999,7]
[328771183,1717780244636,-151.0,0.00029999,7]
[328771184,1717780244645,-151.0,0.00029999,7]
[328771185,1717780244655,-500.0,0.00029999,4]
[328771186,1717780244665,-500.0,0.00029999,4]
[328771187,1717780244748,-195.35,0.00029999,4]
[328771188,1717780244758,-818.96,0.00029999,4]
[328771189,1717780244768,-818.96,0.00029999,4]
[328771190,1717780244778,-818.96,0.00029999,4]
[328771191,1717780244788,-818.96,0.00029999,4]
[328771192,1717780244799,-818.96,0.00029999,4]
[328771193,1717780244810,-818.96,0.00029999,4]
[328771194,1717780244820,-818.96,0.00029999,4]
[328771195,1717780244832,-818.96,0.00029999,4]
[328771196,1717780244843,-818.96,0.00029999,4]
[328771197,1717780244852,-818.96,0.00029999,4]
[328771198,1717780244861,-818.96,0.00029999,4]
[328771199,1717780244870,-818.96,0.00029999,4]
[328771200,1717780244879,-818.96,0.00029999,4]
[328771201,1717780244889,-818.96,0.00029999,4]
[328771202,1717780244899,-818.96,0.00029999,4]
[328771203,1717780244909,-818.96,0.00029999,4]
[328771204,1717780244918,-818.96,0.00029999,4]
[328771205,1717780244927,-818.96,0.00029999,4]
[328771206,1717780244937,-818.96,0.00029999,4]
[328771207,1717780244946,-818.96,0.00029999,4]
[328771208,1717780244955,-500.0,0.00029999,4]
[328771209,1717780244964,-500.0,0.00029999,4]
[328771210,1717780244974,-500.0,0.00029999,4]
[328771211,1717780244983,-500.0,0.00029999,4]
[328771212,1717780244992,-500.0,0.00029999,4]
[328771213,1717780245001,-500.0,0.00029999,4]
[328771214,1717780245011,-500.0,0.00029999,4]
[328771215,1717780245020,-500.0,0.00029999,4]
[328771216,1717780245030,-500.0,0.00029999,4]
[328771217,1717780245039,-500.0,0.00029999,4]
[328771218,1717780245048,-641.88655991,0.00029999,4]
[328771219,1717780245057,-151.0,0.00029999,7]
[328771220,1717780245067,-551.59,0.00029999,4]
[328771221,1717780245076,-551.59,0.00029999,4]
[328771222,1717780245088,-551.59,0.00029999,4]
[328771223,1717780245097,-551.59,0.00029999,4]
[328771224,1717780245107,-551.59,0.00029999,4]
[328771225,1717780245117,-551.59,0.00029999,4]
[328771226,1717780245127,-551.59,0.00029999,4]
[328771227,1717780245136,-551.59,0.00029999,4]
[328771228,1717780245146,-551.59,0.00029999,4]
[328771229,1717780245156,-551.59,0.00029999,4]
[328771230,1717780245165,-551.59,0.00029999,4]
[328771231,1717780245175,-551.59,0.00029999,4]
[328771232,1717780245185,-551.59,0.00029999,4]
[328771233,1717780245195,-551.59,0.00029999,4]
[328771234,1717780245204,-551.59,0.00029999,4]
[328771235,1717780245214,-551.59,0.00029999,4]
[328771236,1717780245223,-551.59,0.00029999,4]
[328771237,1717780245232,-551.59,0.00029999,4]
[328771238,1717780245244,-151.0,0.00029999,7]
[328771239,1717780245254,-551.59,0.00029999,4]
[328771240,1717780245263,-551.67965323,0.00029999,4]
[328771241,1717780245274,-500.0,0.00029999,4]
[328771242,1717780245284,-500.0,0.00029999,4]
[328771243,1717780245294,-500.0,0.00029999,4]
[328771244,1717780245304,-500.0,0.00029999,4]
[328771245,1717780245314,-500.0,0.00029999,4]
[328771246,1717780245324,-500.0,0.00029999,4]
[328771247,1717780245340,-534.96,0.00029999,4]
[328771248,1717780245349,-569.4,0.00029999,4]
[328771249,1717780245359,-569.4,0.00029999,4]
[328771250,1717780245368,-569.4,0.00029999,4]
[328771251,1717780245379,-569.4,0.00029999,4]
[328771252,1717780245389,-569.4,0.00029999,4]
[328771253,1717780245399,-569.4,0.00029999,4]
[328771254,1717780245408,-569.4,0.00029999,4]
[328771255,1717780245418,-569.4,0.00029999,4]
[328771256,1717780245427,-569.4,0.00029999,4]
[328771257,1717780245437,-569.4,0.00029999,4]
[328771258,1717780245447,-569.4,0.00029999,4]
[328771259,1717780245456,-569.4,0.00029999,4]
[328771260,1717780245466,-569.4,0.00029999,4]
[328771261,1717780245475,-569.4,0.00029999,4]
[328771262,1717780245485,-569.4,0.00029999,4]
[328771263,1717780245494,-569.4,0.00029999,4]
[328771264,1717780245503,-569.4,0.00029999,4]
[328771265,1717780245512,-569.4,0.00029999,4]
[328771266,1717780245525,-569.4,0.00029999,4]
[328771267,1717780245534,-569.55787924,0.00029999,4]
[328771268,1717780245544,-500.0,0.00029999,4]
[328771269,1717780245553,-500.0,0.00029999,4]
[328771270,1717780245563,-500.0,0.00029999,4]
[328771271,1717780245573,-500.0,0.00029999,4]
[328771272,1717780245585,-500.0,0.00029999,4]
[328771273,1717780245594,-195.69999999,0.00029999,4]
[328771274,1717780245603,-151.0,0.00029999,7]
[328771276,1717780245612,-151.0,0.00029999,7]
[328771278,1717780245622,-165.163239,0.00029999,7]
[328771280,1717780245632,-159.28225,0.00029999,7]
[328771282,1717780245641,-670.443408,0.00029999,7]
[328771284,1717780245651,-151.0,0.00029999,7]
[328771286,1717780245660,-670.443408,0.00029999,7]
[328771288,1717780245669,-500.0,0.00029999,4]
[328771290,1717780245679,-500.0,0.00029999,4]
[328771292,1717780245688,-366.97,0.00029999,4]
[328771294,1717780245697,-153.990742,0.00029999,7]
[328771295,1717780245707,-151.0,0.00029999,7]
[328771297,1717780245716,-151.0,0.00029999,7]
[328771298,1717780245726,-151.0,0.00029999,7]
[328771299,1717780245736,-500.0,0.00029999,4]
[328771300,1717780245745,-500.0,0.00029999,4]
[328771301,1717780245755,-500.0,0.00029999,4]
[328771302,1717780245765,-500.0,0.00029999,4]
[328771303,1717780245774,-500.0,0.00029999,4]
[328771304,1717780245784,-381.11705009,0.00029999,4]
[328771305,1717780245793,-234.2608,0.00029999,4]
[328771306,1717780245803,-154.714217,0.00029999,7]
[328771307,1717780245812,-500.0,0.00029999,4]
[328771308,1717780245825,-518.83779001,0.00029999,4]
[328771309,1717780245838,-500.0,0.00029999,4]
[328771310,1717780245847,-4329.362249,0.00029999,7]
[328771311,1717780245856,-1904.01,0.00029999,4]
[328771312,1717780245865,-1904.01,0.00029999,4]
[328771313,1717780245875,-1904.01,0.00029999,4]
[328771314,1717780245885,-1904.01,0.00029999,4]
[328771315,1717780245896,-4329.362249,0.00029999,7]
[328771316,1717780245906,-1904.01,0.00029999,4]
[328771317,1717780245915,-1904.01,0.00029999,4]
[328771318,1717780245925,-1904.01,0.00029999,4]
[328771319,1717780245934,-1904.01,0.00029999,4]
[328771320,1717780245943,-1904.01,0.00029999,4]
[328771321,1717780245952,-1904.01,0.00029999,4]
[328771322,1717780245962,-1904.01,0.00029999,4]
[328771323,1717780245971,-1904.01,0.00029999,4]
[328771324,1717780245980,-1904.01,0.00029999,4]
[328771325,1717780245991,-1904.01,0.00029999,4]
[328771326,1717780246000,-1904.01,0.00029999,4]
[328771327,1717780246009,-1904.01,0.00029999,4]
[328771328,1717780246019,-1904.01,0.00029999,4]
[328771329,1717780246028,-1904.01,0.00029999,4]
[328771330,1717780246037,-1904.01,0.00029999,4]
[328771331,1717780246047,-1904.1829,0.00029999,4]
[328771332,1717780246056,-213.392051,0.00029999,7]
[328771333,1717780246065,-151.0,0.00029999,7]
[328771334,1717780246075,-213.392051,0.00029999,7]
[328771335,1717780246086,-151.0,0.00029999,7]
[328771336,1717780246096,-151.0,0.00029999,7]
[328771337,1717780246106,-151.0,0.00029999,7]
[328771338,1717780246115,-151.0,0.00029999,7]
[328771339,1717780246125,-151.0,0.00029999,7]
[328771340,1717780246135,-185.12388106,0.00029999,2]
[328771341,1717780246144,-384.92611895,0.00029999,2]
[328771342,1717780246154,-70067.03160884,0.0003,13]
[328771343,1717780246310,-1270.36620858,0.0003,13]
[328771344,1717780246555,-153.22,0.00027082,2]
[328771345,1717780246565,-153.22,0.0002717,2]
[328771346,1717780246575,-153.22,0.00027259,2]
[328771347,1717780246588,-153.22,0.00027347,2]
[328771348,1717780246597,-134.90787903,0.00027435,2]
[328771349,1717780246613,-18.31212097,0.00027435,2]
[328771350,1717780246623,-153.22,0.00027523,2]
[328771351,1717780246632,-153.22,0.00027611,2]
[328771352,1717780246642,-153.22,0.000277,2]
[328771353,1717780246652,-153.22,0.00027788,2]
[328771354,1717780246662,-153.22,0.00027876,2]
[328771355,1717780246671,-153.22,0.00027964,2]
[328771356,1717780246681,-153.22,0.00028052,2]
[328771357,1717780246690,-153.22,0.00028141,2]
[328771358,1717780246700,-153.22,0.00028229,2]
[328771359,1717780246710,-311.44,0.0002899,10]
[328771360,1717780246720,-265.97843345,0.00028998,2]
[328771361,1717780246730,-927.41297147,0.00029753,2]
[328771362,1717780246740,-927.41297147,0.00029753,2]
[328771363,1717780246750,-927.41297147,0.00029753,2]
[328771364,1717780246761,-927.41297147,0.00029753,2]
[328771365,1717780246772,-927.41297147,0.00029753,2]
[328771366,1717780246782,-927.41297147,0.00029774,2]
[328771367,1717780246793,-927.41297147,0.00029778,2]
[328771368,1717780246808,-927.41297147,0.0002979,2]
[328771369,1717780246819,-927.41297147,0.0002979,2]
[328771370,1717780246828,-927.41297147,0.0002979,2]
[328771371,1717780246841,-927.41297147,0.0002979,2]
[328771372,1717780246851,-927.41297147,0.0002979,2]
[328771373,1717780246862,-927.41297147,0.00029821,2]
[328771374,1717780246872,-927.41297147,0.00029852,2]
[328771375,1717780246882,-927.41297147,0.00029853,2]
[328771376,1717780246894,-927.41297147,0.00029853,2]
[328771377,1717780246903,-927.41297147,0.00029853,2]
[328771378,1717780246914,-927.41297147,0.00029853,2]
[328771379,1717780246924,-927.41297147,0.00029853,2]
[328771380,1717780246934,-927.41297147,0.00029853,2]
[328771381,1717780246944,-927.41297147,0.00029853,2]
[328771382,1717780246954,-927.41297147,0.00029853,2]
[328771383,1717780246963,-927.41297147,0.00029853,2]
[328771384,1717780246974,-927.41297147,0.00029853,2]
[328771385,1717780246984,-927.41297147,0.00029853,2]
[328771386,1717780246994,-927.41297147,0.00029853,2]
[328771387,1717780247004,-927.41297147,0.00029853,2]
[328771388,1717780247014,-927.41297147,0.00029853,2]
[328771389,1717780247024,-927.41297147,0.00029853,2]
[328771390,1717780247034,-219.344539,0.00029999,7]
[328771391,1717780247043,-20032.87079928,0.0003,13]
[328771392,1717780247056,-8732.500002,0.0003,13]
[328771393,1717780247068,-312.6138,0.0003,13]
[328771394,1717780247082,-505.83999999,0.0003,13]
[328771395,1717780247093,-35399.48410581,0.0003,13]
[328771396,1717780247104,-849.74959229,0.0003,13]
[328771397,1717780247166,-153.22,0.00028317,2]
[328771398,1717780247176,-153.22,0.00028405,2]
[328771399,1717780247185,-153.22,0.00028493,2]
[328771400,1717780247195,-358.78913956,0.00029853,2]
[328771401,1717780247207,-568.62383191,0.00029853,2]
[328771402,1717780247217,-324.48908118,0.00029853,2]
[328771403,1717780247260,-602.92389029,0.00029853,2]
[328771404,1717780247270,-105.79411971,0.00029853,2]
[328771405,1717780247282,-821.61885176,0.00029853,2]
[328771406,1717780247292,-9868.98114784,0.0003,13]
[328771407,1717780247303,-3686.05847686,0.0003,13]
[328771408,1717780247330,-164.653401,0.00027992,2]
[328771409,1717780247341,-71435.346599,0.0003,13]
[328771410,1717780247352,-839.10109103,0.0003,13]
[328771411,1717780247419,-611415.65320677,0.0003,13]
[328771412,1717780247438,-840.84588534,0.00029853,2]
[328771413,1717780247448,-30000.62656276,0.0003,13]
[328771414,1717780247460,-96036.14153723,0.0003,13]
[328771415,1717780247470,-9617.08380262,0.0003,2]
[328771416,1717780247485,-7081.00000001,0.0003,2]
[328771417,1717780247559,-840.84588534,0.00029853,2]
[328771418,1717780247569,-118.78807865,0.00029853,2]
[328771419,1717780247581,-722.05780669,0.00029853,2]
[328771420,1717780247591,-840.84588534,0.00029853,2]
[328771421,1717780247600,-840.84588534,0.00029853,2]
[328771422,1717780247610,-259.53,0.00029989,10]
[328771423,1717780247619,-3026.10599548,0.0003,2]
[328771424,1717780247631,-854.09617325,0.0003,2]
[328771425,1717780247643,-3158.79889111,0.0003,2]
[328771426,1717780247654,-1894.28099999,0.0003,2]
[328771427,1717780247672,-7076.0,0.0003,2]
[328771428,1717780247684,-18905.00000005,0.0003,2]
[328771430,1717780248869,-155.0,0.00029998,2]
[328771431,1717780248882,-109.02213237,0.0003,2]
[328771721,1717781012397,6451.28,0.0003,120]
[328771735,1717781431916,-250.84971858,0.00017219,2]
[328771736,1717781431926,-136.12886054,0.0001722,2]
[328771737,1717781431943,-549.37332774,0.0001722,2]
[328771740,1717781432147,-352.775,0.0001722,2]
[328771741,1717781432160,-180.33468288,0.0001722,2]
[328771742,1717781432169,-155.0,0.00017221,2]
[328771743,1717781432180,-319.2165334,0.00017221,2]
[328771744,1717781432191,-19.04439053,0.00017221,2]
[328771745,1717781432203,-1252.78326197,0.00017222,2]
[328771746,1717781432214,-545.55511165,0.00017222,2]
[328771747,1717781432225,-1102.88474053,0.00017224,2]
[328771748,1717781432235,-632.31797152,0.00017258,2]
[328771749,1717781432245,-150.99,0.00019249,2]
[328771750,1717781432256,-373.560159,0.00019249,2]
[328771751,1717781432266,-4748.2732,0.00019346,2]
[328771752,1717781432276,-499.99,0.00019346,2]
[328771753,1717781432286,-358.20152403,0.000237,2]
[328771754,1717781432298,-518.14026105,0.000237,2]
[328771755,1717781432309,-133.09142011,0.00024384,2]
[328771756,1717781434584,-20.35857989,0.00024384,2]
[328771757,1717781434595,-258.53,0.00024384,2]
[328771758,1717781434606,-1250.0,0.00025,2]
[328771759,1717781434616,-155.0,0.00025,2]
[328771760,1717781434626,-349.31,0.00025183,2]
[328771761,1717781434636,-2268.30989723,0.000252,2]
[328771762,1717781434646,-7002.0,0.000252,5]
[328771763,1717781434656,-459.69,0.00026462,2]
[328771764,1717781434666,-348.0,0.00026687,2]
[328771765,1717781434676,-200.0,0.00026733,2]
[328771766,1717781434688,-250.0,0.00026796,2]
[328771767,1717781434699,-559.68,0.00026808,2]
[328771768,1717781434710,-164.36,0.00026941,2]
[328771769,1717781434721,-1235.15,0.00026963,2]
[328771770,1717781434731,-200.0,0.00026974,2]
[328771771,1717781434743,-164.36,0.00026975,2]
[328771772,1717781434753,-164.36,0.00027008,2]
[328771773,1717781434764,-762.43,0.00027035,2]
[328771774,1717781434774,-164.36,0.00027042,2]
[328771775,1717781434784,-164.36,0.00027076,2]
[328771776,1717781434794,-4107.04970264,0.00027385,2]
[328771777,1717781434805,-23900.0,0.00027395,2]
[328771778,1717781434815,-349.31,0.00027447,2]
[328771781,1717781434826,-178.02,0.00027756,2]
[328771782,1717781434836,-600.0,0.00027756,2]
[328771784,1717781434846,-165.03,0.00027786,2]
[328771786,1717781434856,-250.0,0.00027806,2]
[328771788,1717781434867,-1213.664472,0.00027992,2]
[328771790,1717781434877,-655.455848,0.00027992,2]
[328771792,1717781434887,-213.791135,0.00027992,2]
[328771794,1717781434897,-334.536975,0.00027992,2]
[328771796,1717781434907,-246.193775,0.00027992,2]
[328771798,1717781434917,-183.754793,0.00027992,2]
[328771800,1717781434927,-303.416118,0.00027992,2]
[328771802,1717781434938,-3326.0,0.00028,3]
[328771804,1717781434948,-163.55,0.00028011,2]
[328771806,1717781434958,-348.0,0.00028021,2]
[328771808,1717781434969,-2.44963545,0.000282,2]
[328771810,1717781434982,-997.55036455,0.000282,2]
[328771812,1717781434992,-151.0,0.00028281,7]
[328771814,1717781435002,-103.9214365,0.00028342,2]
[328771817,1717781435014,-1109.7430355,0.00028342,2]
[328771819,1717781435024,-655.455848,0.00028342,2]